[Event "32nd NATO Chess Championship"]
[Site "Tartu, Estonia"]
[Date "2022.06.30"]
[Round "5.40"]
[White "Coulon, Dominic"]
[Black "Allmann, Lauri"]
[Result "0-1"]
[TimeControl "90 min + 30 sec increment from move one"]
[WhiteFideId "2621932"]
[BlackFideId "2604868"]
[WhiteElo "1701"]
[BlackElo "1804"]

1. d4 {[%clk 01:30:54]} {[%emt 00:00:05]} Nf6 {[%clk 01:30:53]} {[%emt
00:00:08]} 2. Bg5 {[%clk 01:30:56]} {[%emt 00:00:27]} d6 {[%clk 01:29:52]}
{[%emt 00:01:33]} 3. Bxf6 {[%clk 01:30:43]} {[%emt 00:00:43]} exf6 {[%clk
01:30:05]} {[%emt 00:00:17]} 4. e3 {[%clk 01:29:52]} {[%emt 00:01:22]} Nc6
{[%clk 01:29:05]} {[%emt 00:01:29]} 5. Nd2 {[%clk 01:26:55]} {[%emt 00:03:26]}
g6 {[%clk 01:28:01]} {[%emt 00:01:34]} 6. c3 {[%clk 01:26:48]} {[%emt
00:00:37]} Bf5 {[%clk 01:26:57]} {[%emt 00:01:35]} 7. Ne2 {[%clk 01:24:29]}
{[%emt 00:02:49]} Bg7 {[%clk 01:25:39]} {[%emt 00:01:48]} 8. Ng3 {[%clk
01:22:22]} {[%emt 00:02:36]} Ne7 {[%emt 00:02:24]} 9. Nxf5 {[%emt 00:01:57]}
Nxf5 {[%clk 01:22:12]} {[%emt 00:02:05]} 10. g3 {[%clk 01:13:57]} {[%emt
00:07:26]} O-O {[%clk 01:20:59]} {[%emt 00:01:43]} 11. Bg2 {[%clk 01:14:20]}
{[%emt 00:00:07]} Rb8 {[%clk 01:18:50]} {[%emt 00:02:40]} 12. O-O {[%clk
01:14:18]} {[%emt 00:00:31]} Re8 {[%clk 01:17:14]} {[%emt 00:02:06]} 13. c4
{[%clk 01:09:51]} {[%emt 00:04:57]} c6 {[%clk 01:12:19]} {[%emt 00:05:25]} 14.
b4 {[%clk 01:08:02]} {[%emt 00:02:19]} h5 {[%clk 01:06:12]} {[%emt 00:06:38]}
15. Rb1 {[%clk 01:03:41]} {[%emt 00:04:50]} Bh6 {[%clk 01:04:10]} {[%emt
00:02:31]} 16. Re1 {[%clk 00:57:49]} {[%emt 00:06:22]} Qc7 {[%clk 00:51:37]}
{[%emt 00:13:02]} 17. Nf1 {[%clk 00:52:48]} {[%emt 00:05:32]} Ng7 {[%clk
00:45:52]} {[%emt 00:06:15]} 18. d5 {[%clk 00:48:05]} {[%emt 00:05:14]} c5
{[%clk 00:43:25]} {[%emt 00:02:57]} 19. bxc5 {[%clk 00:45:58]} {[%emt
00:02:37]} Qxc5 {[%clk 00:42:50]} {[%emt 00:01:05]} 20. Qd4 {[%clk 00:43:22]}
{[%emt 00:03:06]} Rec8 {[%clk 00:41:00]} {[%emt 00:02:21]} 21. Qxf6 {[%emt
00:06:39]} Ne8 {[%emt 00:16:46]} 22. Qd4 {[%emt 00:01:59]} Qxd4 {[%clk
00:36:47]} {[%emt 00:02:33]} 23. exd4 {[%emt 00:00:58]} Rxc4 {[%clk 00:36:29]}
{[%emt 00:00:02]} 24. Re7 {[%clk 00:21:01]} {[%emt 00:01:24]} Rc7 {[%clk
00:35:58]} {[%emt 00:01:01]} 25. Rbe1 {[%clk 00:19:24]} {[%emt 00:02:07]} Kf8
{[%clk 00:35:36]} {[%emt 00:00:52]} 26. R7e2 {[%clk 00:18:14]} {[%emt
00:01:39]} Nf6 {[%emt 00:02:51]} 27. Ne3 {[%clk 00:16:17]} {[%emt 00:02:22]}
Re8 {[%clk 00:32:28]} {[%emt 00:01:23]} 28. f4 {[%emt 00:01:21]} Bg7 {[%clk
00:30:11]} {[%emt 00:02:44]} 29. Rd1 {[%emt 00:05:43]} Rc3 {[%clk 00:28:15]}
{[%emt 00:02:15]} 30. Kf2 {[%clk 00:10:00]} {[%emt 00:00:57]} Rcxe3 {[%emt
00:01:58]} 0-1

[Event "32nd NATO Chess Championship"]
[Site "Tartu, Estonia"]
[Date "2022.06.30"]
[Round "5.41"]
[White "Moulton, Richard"]
[Black "O`byrne, Daniel"]
[Result "0-1"]
[TimeControl "90 min + 30 sec increment from move one"]
[WhiteFideId "2622718"]
[BlackFideId "440825"]
[WhiteElo "1766"]
[BlackElo "1664"]

1. e4 {[%clk 01:30:57]} {[%emt 00:00:03]} e6 {[%clk 01:30:50]} {[%emt
00:00:11]} 2. d4 {[%clk 01:31:19]} {[%emt 00:00:07]} d5 {[%clk 01:31:16]}
{[%emt 00:00:04]} 3. Nc3 {[%clk 01:31:38]} {[%emt 00:00:11]} c5 {[%clk
01:30:49]} {[%emt 00:00:57]} 4. exd5 {[%clk 01:28:54]} {[%emt 00:03:16]} cxd4
{[%clk 01:30:25]} {[%emt 00:00:54]} 5. Qxd4 {[%clk 01:28:05]} {[%emt 00:01:19]}
Nc6 {[%clk 01:30:26]} {[%emt 00:00:29]} 6. Qa4 {[%clk 01:18:10]} {[%emt
00:10:24]} exd5 {[%clk 01:30:29]} {[%emt 00:00:27]} 7. Nf3 {[%clk 01:16:32]}
{[%emt 00:02:09]} d4 {[%clk 01:27:02]} {[%emt 00:03:57]} 8. Nb5 {[%clk
01:13:19]} {[%emt 00:03:43]} Bb4+ {[%clk 01:26:42]} {[%emt 00:00:50]} 9. Bd2
{[%clk 01:11:17]} {[%emt 00:02:33]} Bxd2+ {[%clk 01:26:18]} {[%emt 00:00:54]}
10. Kxd2 {[%clk 01:07:31]} {[%emt 00:04:15]} Nge7 {[%emt 00:08:51]} 11. Bd3
{[%clk 01:03:33]} {[%emt 00:04:26]} O-O {[%clk 01:15:17]} {[%emt 00:03:13]} 12.
Nbxd4 {[%clk 01:00:50]} {[%emt 00:03:11]} Nxd4 {[%clk 01:14:00]} {[%emt
00:01:49]} 13. Qxd4 {[%clk 01:00:03]} {[%emt 00:01:18]} Qc7 {[%clk 01:12:15]}
{[%emt 00:02:15]} 14. Rhe1 {[%clk 00:49:50]} {[%emt 00:10:42]} Ng6 {[%clk
01:06:20]} {[%emt 00:06:24]} 15. g3 {[%clk 00:41:06]} {[%emt 00:09:15]} Be6
{[%clk 01:02:47]} {[%emt 00:04:03]} 16. b3 {[%clk 00:35:00]} {[%emt 00:06:36]}
Rfd8 {[%clk 01:01:22]} {[%emt 00:01:54]} 17. Qb4 {[%clk 00:25:13]} {[%emt
00:10:18]} Rac8 {[%clk 01:00:06]} {[%emt 00:01:46]} 18. Rac1 {[%clk 00:24:16]}
{[%emt 00:01:27]} a5 {[%clk 00:55:31]} {[%emt 00:05:06]} 19. Qb5 {[%clk
00:22:11]} {[%emt 00:02:35]} Qc3+ {[%clk 00:54:56]} {[%emt 00:01:03]} 20. Kd1
{[%clk 00:18:41]} {[%emt 00:04:01]} Rc5 {[%clk 00:46:53]} {[%emt 00:08:32]} 21.
Qxc5 {[%clk 00:11:08]} {[%emt 00:08:05]} Qxc5 {[%clk 00:46:51]} {[%emt
00:00:31]} 22. Ke2 {[%clk 00:11:31]} {[%emt 00:00:07]} Bg4 {[%clk 00:47:08]}
{[%emt 00:00:13]} 23. Be4 {[%clk 00:11:37]} {[%emt 00:00:24]} Re8 {[%clk
00:46:14]} {[%emt 00:01:22]} 24. Kf1 {[%clk 00:11:51]} {[%emt 00:00:16]} Bxf3
{[%clk 00:31:23]} {[%emt 00:15:21]} 25. Bxf3 {[%clk 00:12:14]} {[%emt
00:00:08]} Rxe1+ {[%clk 00:31:39]} {[%emt 00:00:14]} 26. Rxe1 {[%clk 00:12:09]}
{[%emt 00:00:35]} Qxc2 {[%clk 00:30:51]} {[%emt 00:01:18]} 27. Re2 {[%clk
00:12:03]} {[%emt 00:00:36]} Qc7 {[%clk 00:27:10]} {[%emt 00:04:11]} 28. Kg2
{[%clk 00:10:49]} {[%emt 00:01:44]} Nf8 {[%clk 00:26:15]} {[%emt 00:01:24]} 29.
Bd5 {[%clk 00:10:22]} {[%emt 00:00:57]} g6 {[%clk 00:25:21]} {[%emt 00:01:25]}
30. Bc4 {[%clk 00:10:02]} {[%emt 00:00:51]} b5 {[%clk 00:25:13]} {[%emt
00:00:37]} 31. Bd5 {[%clk 00:09:33]} {[%emt 00:00:58]} Kg7 {[%clk 00:23:31]}
{[%emt 00:02:12]} 32. Bf3 {[%clk 00:08:58]} {[%emt 00:01:06]} Ne6 {[%clk
00:23:40]} {[%emt 00:00:20]} 33. Rd2 {[%clk 00:08:26]} {[%emt 00:01:02]} Ng5
{[%clk 00:22:56]} {[%emt 00:01:14]} 34. Be2 {[%clk 00:08:05]} {[%emt 00:00:51]}
Qc3 {[%clk 00:21:37]} {[%emt 00:01:49]} 35. Rd8 {[%clk 00:07:03]} {[%emt
00:01:32]} Qc6+ {[%clk 00:20:06]} {[%emt 00:02:02]} 36. f3 {[%clk 00:06:40]}
{[%emt 00:00:53]} Qc2 {[%clk 00:20:06]} {[%emt 00:00:30]} 37. Kf2 {[%clk
00:06:48]} {[%emt 00:00:22]} Qxa2 {[%clk 00:18:34]} {[%emt 00:02:02]} 38. Ra8
{[%clk 00:06:46]} {[%emt 00:00:32]} Ne6 {[%clk 00:17:43]} {[%emt 00:01:21]} 39.
Ke1 {[%clk 00:03:34]} {[%emt 00:03:41]} Qxb3 {[%clk 00:17:58]} {[%emt
00:00:14]} 0-1

[Event "32nd NATO Chess Championship"]
[Site "Tartu, Estonia"]
[Date "2022.06.30"]
[Round "5.42"]
[White "Sui, Andres"]
[Black "Echavarria Hidalgo, Fernando"]
[Result "1-0"]
[TimeControl "90 min + 30 sec increment from move one"]
[WhiteFideId "4507029"]
[BlackFideId "2617528"]
[WhiteElo "1288"]
[BlackElo "1749"]

1. c4 {[%clk 01:30:19]} {[%emt 00:00:26]} c5 {[%clk 01:30:06]} {[%emt
00:00:55]} 2. Nc3 {[%clk 01:30:33]} {[%emt 00:00:16]} Nf6 {[%clk 01:29:48]}
{[%emt 00:00:49]} 3. d3 {[%clk 01:30:27]} {[%emt 00:00:35]} Nc6 {[%clk
01:29:10]} {[%emt 00:01:08]} 4. g3 {[%clk 01:30:08]} {[%emt 00:00:49]} b6
{[%clk 01:28:35]} {[%emt 00:01:06]} 5. Bg2 {[%clk 01:30:15]} {[%emt 00:00:22]}
Bb7 {[%clk 01:28:50]} {[%emt 00:00:16]} 6. e4 {[%clk 01:30:12]} {[%emt
00:00:33]} Nd4 {[%clk 01:27:01]} {[%emt 00:02:20]} 7. f4 {[%clk 01:29:28]}
{[%emt 00:01:12]} e6 {[%clk 01:25:52]} {[%emt 00:01:41]} 8. Be3 {[%clk
01:29:31]} {[%emt 00:00:27]} Nc6 {[%clk 01:21:57]} {[%emt 00:04:25]} 9. Nf3
{[%clk 01:25:45]} {[%emt 00:04:15]} d6 {[%clk 01:13:29]} {[%emt 00:08:58]} 10.
O-O {[%clk 01:21:04]} {[%emt 00:05:11]} Be7 {[%clk 01:12:30]} {[%emt 00:01:29]}
11. Qd2 {[%clk 01:20:36]} {[%emt 00:00:58]} Ng4 {[%clk 01:11:19]} {[%emt
00:01:41]} 12. Rae1 {[%clk 01:18:09]} {[%emt 00:02:56]} O-O {[%clk 01:09:07]}
{[%emt 00:02:43]} 13. h3 {[%clk 01:12:47]} {[%emt 00:05:52]} Nxe3 {[%clk
01:08:43]} {[%emt 00:00:54]} 14. Qxe3 {[%clk 01:12:27]} {[%emt 00:00:48]} Re8
{[%clk 01:03:32]} {[%emt 00:05:43]} 15. g4 {[%clk 01:09:00]} {[%emt 00:03:58]}
Bf8 {[%clk 01:02:26]} {[%emt 00:01:35]} 16. Kh2 {[%clk 01:06:41]} {[%emt
00:02:49]} g6 {[%clk 00:57:51]} {[%emt 00:05:05]} 17. g5 {[%clk 01:02:16]}
{[%emt 00:04:55]} Bg7 {[%clk 00:56:09]} {[%emt 00:02:12]} 18. Rd1 {[%clk
00:52:10]} {[%emt 00:10:37]} a6 {[%clk 00:52:33]} {[%emt 00:04:05]} 19. Rd2
{[%clk 00:51:04]} {[%emt 00:01:37]} Rb8 {[%clk 00:51:03]} {[%emt 00:01:59]} 20.
Ne2 {[%clk 00:50:16]} {[%emt 00:01:18]} Ba8 {[%clk 00:47:19]} {[%emt 00:02:59]}
21. d4 {[%clk 00:49:51]} {[%emt 00:02:10]} cxd4 {[%clk 00:43:53]} {[%emt
00:03:57]} 22. Nexd4 {[%clk 00:49:25]} {[%emt 00:00:55]} Nxd4 {[%clk 00:43:41]}
{[%emt 00:00:42]} 23. Nxd4 {[%clk 00:49:44]} {[%emt 00:00:11]} Qc7 {[%clk
00:42:18]} {[%emt 00:01:54]} 24. b3 {[%clk 00:49:09]} {[%emt 00:01:05]} Rbd8
{[%clk 00:33:11]} {[%emt 00:09:37]} 25. Nf3 {[%clk 00:45:52]} {[%emt 00:03:47]}
Qc5 {[%clk 00:30:59]} {[%emt 00:02:42]} 26. Qxc5 {[%clk 00:44:56]} {[%emt
00:01:27]} dxc5 {[%clk 00:31:06]} {[%emt 00:00:23]} 27. e5 {[%clk 00:43:57]}
{[%emt 00:01:29]} Rxd2 {[%clk 00:27:12]} {[%emt 00:04:24]} 28. Nxd2 {[%clk
00:44:15]} {[%emt 00:00:12]} Bxg2 {[%clk 00:27:28]} {[%emt 00:00:13]} 29. Kxg2
{[%clk 00:44:33]} {[%emt 00:00:12]} h6 {[%clk 00:24:57]} {[%emt 00:03:02]} 30.
h4 {[%clk 00:44:44]} {[%emt 00:00:18]} hxg5 {[%clk 00:25:12]} {[%emt 00:00:15]}
31. hxg5 {[%clk 00:45:11]} {[%emt 00:00:03]} Rd8 {[%clk 00:24:03]} {[%emt
00:01:39]} 32. Ne4 {[%clk 00:44:35]} {[%emt 00:01:06]} Bf8 {[%clk 00:23:33]}
{[%emt 00:01:01]} 33. Rf2 {[%clk 00:45:04]} Rd4 {[%clk 00:21:45]} {[%emt
00:02:18]} 34. Kf3 {[%clk 00:45:32]} {[%emt 00:00:01]} b5 {[%clk 00:19:07]}
{[%emt 00:03:08]} 35. Rd2 {[%clk 00:45:26]} {[%emt 00:00:36]} bxc4 {[%clk
00:15:50]} {[%emt 00:03:48]} 36. Rxd4 {[%clk 00:44:57]} {[%emt 00:00:58]} cxd4
{[%clk 00:16:07]} {[%emt 00:00:13]} 37. bxc4 {[%clk 00:45:18]} {[%emt
00:00:09]} Ba3 {[%clk 00:15:05]} {[%emt 00:01:32]} 38. Ke2 {[%clk 00:43:58]}
{[%emt 00:01:50]} Kf8 {[%clk 00:13:54]} {[%emt 00:01:42]} 39. Kd3 {[%clk
00:44:27]} {[%emt 00:00:01]} Bb2 {[%clk 00:09:56]} {[%emt 00:04:27]} 40. Nc5
{[%clk 00:44:36]} {[%emt 00:00:21]} Bc1 {[%clk 00:09:36]} {[%emt 00:00:51]} 41.
Ke4 {[%clk 00:44:46]} {[%emt 00:00:19]} Ke7 {[%clk 00:08:45]} {[%emt 00:01:21]}
42. Nxa6 {[%clk 00:44:57]} {[%emt 00:00:19]} d3 {[%clk 00:08:55]} {[%emt
00:00:21]} 43. Kxd3 {[%clk 00:44:44]} {[%emt 00:00:42]} Bxf4 {[%clk 00:09:15]}
{[%emt 00:00:10]} 44. Ke4 {[%clk 00:45:08]} {[%emt 00:00:06]} Bxg5 {[%clk
00:09:30]} {[%emt 00:00:15]} 45. a4 {[%clk 00:44:16]} {[%emt 00:01:23]} Bd2
{[%clk 00:09:22]} {[%emt 00:00:38]} 46. Nb8 {[%clk 00:44:26]} {[%emt 00:00:19]}
g5 {[%clk 00:09:19]} {[%emt 00:00:34]} 47. a5 {[%clk 00:43:32]} {[%emt
00:01:24]} g4 {[%clk 00:09:38]} {[%emt 00:00:11]} 48. a6 {[%clk 00:43:17]}
{[%emt 00:00:45]} g3 {[%clk 00:08:16]} {[%emt 00:01:52]} 49. Kf3 {[%clk
00:43:33]} {[%emt 00:00:14]} g2 {[%clk 00:07:47]} {[%emt 00:00:59]} 50. Kxg2
{[%clk 00:44:01]} {[%emt 00:00:01]} Be3 {[%clk 00:07:56]} {[%emt 00:00:21]} 51.
a7 {[%clk 00:44:30]} {[%emt 00:00:02]} Bxa7 {[%clk 00:08:01]} {[%emt 00:00:25]}
52. Nc6+ {[%clk 00:44:59]} Kd7 {[%clk 00:06:11]} {[%emt 00:02:20]} 53. Nxa7
{[%clk 00:45:28]} Kc7 {[%clk 00:05:39]} {[%emt 00:01:02]} 54. Nb5+ {[%clk
00:45:56]} {[%emt 00:00:02]} Kc6 {[%clk 00:05:56]} {[%emt 00:00:13]} 55. Nd6
{[%clk 00:46:16]} {[%emt 00:00:10]} f6 {[%clk 00:04:55]} {[%emt 00:01:30]} 56.
exf6 {[%clk 00:45:56]} {[%emt 00:00:50]} Kxd6 {[%clk 00:05:06]} {[%emt
00:00:20]} 57. c5+ {[%clk 00:46:26]} 1-0

[Event "32nd NATO Chess Championship"]
[Site "Tartu, Estonia"]
[Date "2022.06.30"]
[Round "5.45"]
[White "Csizmadia, Csaba"]
[Black "Korge, Kersti"]
[Result "1-0"]
[TimeControl "90 min + 30 sec increment from move one"]
[WhiteFideId "763942"]
[BlackFideId "4502310"]
[WhiteElo "1875"]
[BlackElo "1864"]

1. d4 {[%clk 01:30:55]} {[%emt 00:00:04]} Nf6 {[%clk 01:30:54]} {[%emt
00:00:06]} 2. Nf3 {[%clk 01:31:19]} {[%emt 00:00:06]} g6 {[%clk 01:31:18]}
{[%emt 00:00:06]} 3. c4 {[%clk 01:31:38]} {[%emt 00:00:11]} c5 {[%clk
01:31:30]} {[%emt 00:00:17]} 4. e3 {[%clk 01:32:03]} {[%emt 00:00:06]} Bg7
{[%clk 01:30:10]} {[%emt 00:01:50]} 5. Nc3 {[%clk 01:32:11]} {[%emt 00:00:23]}
cxd4 {[%clk 01:29:28]} {[%emt 00:01:13]} 6. exd4 {[%clk 01:32:39]} {[%emt
00:00:02]} O-O {[%clk 01:29:13]} {[%emt 00:00:44]} 7. Be2 {[%clk 01:32:23]}
{[%emt 00:00:46]} d5 {[%clk 01:27:16]} {[%emt 00:02:27]} 8. O-O {[%clk
01:31:57]} {[%emt 00:00:56]} Nc6 {[%clk 01:26:58]} {[%emt 00:00:49]} 9. h3
{[%clk 01:32:10]} {[%emt 00:00:17]} Bf5 {[%clk 01:22:36]} {[%emt 00:04:51]} 10.
a3 {[%clk 01:31:13]} {[%emt 00:01:28]} dxc4 {[%clk 01:22:04]} {[%emt 00:01:03]}
11. Bxc4 {[%clk 01:31:33]} {[%emt 00:00:10]} Ne4 {[%clk 01:17:44]} {[%emt
00:04:50]} 12. Be3 {[%clk 01:31:40]} {[%emt 00:00:22]} Nxc3 {[%clk 01:17:47]}
{[%emt 00:00:27]} 13. bxc3 {[%clk 01:32:05]} {[%emt 00:00:04]} Qa5 {[%clk
01:14:07]} {[%emt 00:04:11]} 14. Qb3 {[%clk 01:30:31]} {[%emt 00:02:04]} Qc7
{[%clk 01:13:20]} {[%emt 00:01:17]} 15. Be2 {[%clk 01:27:19]} {[%emt 00:03:42]}
Rac8 {[%clk 01:04:30]} {[%emt 00:09:20]} 16. Rac1 {[%clk 01:26:55]} {[%emt
00:00:54]} Na5 {[%clk 01:02:56]} {[%emt 00:02:04]} 17. Qb4 {[%clk 01:26:32]}
{[%emt 00:00:53]} Rfd8 {[%clk 00:55:51]} {[%emt 00:07:35]} 18. Rfd1 {[%clk
01:26:08]} {[%emt 00:00:54]} Bf8 {[%clk 00:55:03]} {[%emt 00:01:18]} 19. c4
{[%clk 01:12:27]} {[%emt 00:14:12]} Nc6 {[%clk 00:53:02]} {[%emt 00:02:31]} 20.
Qd2 {[%clk 01:11:40]} {[%emt 00:01:16]} e6 {[%clk 00:51:33]} {[%emt 00:01:59]}
21. Qc3 {[%clk 01:11:37]} {[%emt 00:00:33]} Qa5 {[%clk 00:51:22]} {[%emt
00:00:41]} 22. Qxa5 {[%clk 01:11:48]} {[%emt 00:00:20]} Nxa5 {[%clk 00:51:51]}
{[%emt 00:00:02]} 23. g4 {[%clk 01:10:50]} {[%emt 00:01:28]} Be4 {[%clk
00:52:12]} {[%emt 00:00:09]} 24. Ng5 {[%clk 01:10:54]} {[%emt 00:00:24]} Bc6
{[%clk 00:52:04]} {[%emt 00:00:40]} 25. f3 {[%clk 00:56:17]} {[%emt 00:15:08]}
Ba4 {[%clk 00:49:06]} {[%emt 00:03:27]} 26. Rf1 {[%clk 00:56:12]} {[%emt
00:00:35]} Nb3 {[%clk 00:48:43]} {[%emt 00:00:54]} 27. Rcd1 {[%clk 00:54:59]}
{[%emt 00:01:43]} Na5 {[%clk 00:45:44]} {[%emt 00:03:29]} 28. Rc1 {[%clk
00:55:03]} {[%emt 00:00:27]} Bxa3 {[%clk 00:45:53]} {[%emt 00:00:21]} 29. Ra1
{[%clk 00:55:05]} {[%emt 00:00:27]} Nxc4 {[%clk 00:44:46]} {[%emt 00:01:38]} 30.
Bxc4 {[%clk 00:54:30]} {[%emt 00:01:05]} Rxc4 {[%clk 00:45:11]} {[%emt
00:00:05]} 31. Rxa3 {[%clk 00:54:46]} {[%emt 00:00:14]} b5 {[%clk 00:45:08]}
{[%emt 00:00:33]} 32. Ne4 {[%clk 00:55:01]} {[%emt 00:00:14]} f5 {[%clk
00:40:21]} {[%emt 00:05:18]} 33. Nc5 {[%clk 00:55:16]} {[%emt 00:00:14]} Kf7
{[%clk 00:40:08]} {[%emt 00:00:43]} 34. Nxa4 {[%clk 00:55:31]} {[%emt
00:00:16]} bxa4 {[%clk 00:40:36]} {[%emt 00:00:01]} 35. Rfa1 {[%emt 00:00:21]}
f4 {[%emt 00:00:37]} 36. Bf2 {[%clk 00:54:57]} {[%emt 00:00:06]} Rb8 {[%clk
00:39:56]} {[%emt 00:01:11]} 37. Rxa4 {[%clk 00:55:10]} {[%emt 00:00:17]} Rxa4
{[%clk 00:40:20]} {[%emt 00:00:06]} 38. Rxa4 {[%clk 00:55:28]} {[%emt
00:00:12]} Rb7 {[%clk 00:39:49]} {[%emt 00:01:01]} 39. d5 {[%clk 00:53:42]}
{[%emt 00:02:16]} exd5 {[%clk 00:40:12]} {[%emt 00:00:07]} 40. Rxf4+ {[%clk
00:54:05]} {[%emt 00:00:07]} Ke6 {[%clk 00:40:30]} {[%emt 00:00:12]} 41. Ra4
{[%clk 00:54:30]} {[%emt 00:00:05]} Ke5 {[%clk 00:40:36]} {[%emt 00:00:24]} 42.
Bxa7 {[%clk 00:54:09]} {[%emt 00:00:50]} Rb3 {[%clk 00:40:18]} {[%emt
00:00:49]} 43. Kg2 {[%clk 00:54:25]} {[%emt 00:00:13]} Rd3 {[%clk 00:40:01]}
{[%emt 00:00:47]} 44. Bb8+ {[%clk 00:54:24]} {[%emt 00:00:32]} Kf6 {[%clk
00:40:13]} {[%emt 00:00:19]} 45. Ra6+ {[%clk 00:54:02]} {[%emt 00:00:52]} Kg5
{[%clk 00:40:04]} {[%emt 00:00:39]} 46. Kg3 {[%clk 00:54:25]} {[%emt 00:00:06]}
Kh6 {[%clk 00:39:54]} {[%emt 00:00:40]} 47. Bf4+ {[%clk 00:53:54]} {[%emt
00:01:01]} Kg7 {[%clk 00:40:16]} {[%emt 00:00:08]} 48. g5 {[%clk 00:54:04]}
{[%emt 00:00:19]} Rd1 {[%clk 00:40:21]} {[%emt 00:00:25]} 49. Ra7+ {[%clk
00:54:10]} {[%emt 00:00:24]} Kg8 {[%clk 00:40:36]} {[%emt 00:00:15]} 50. Be5
{[%clk 00:53:17]} {[%emt 00:01:23]} d4 {[%clk 00:40:48]} {[%emt 00:00:19]} 51.
Rd7 {[%clk 00:53:34]} {[%emt 00:00:13]} d3 {[%clk 00:41:12]} {[%emt 00:00:06]}
52. Bc3 {[%clk 00:53:14]} {[%emt 00:00:49]} Rg1+ {[%clk 00:41:15]} {[%emt
00:00:28]} 53. Kf4 {[%clk 00:53:34]} {[%emt 00:00:09]} Rh1 {[%clk 00:41:34]}
{[%emt 00:00:11]} 54. Rxd3 {[%clk 00:53:45]} {[%emt 00:00:19]} Rxh3 {[%clk
00:41:57]} {[%emt 00:00:08]} 55. Bf6 {[%clk 00:51:20]} {[%emt 00:02:55]} Kf7
{[%clk 00:39:54]} {[%emt 00:02:32]} 56. Rd7+ {[%clk 00:51:41]} {[%emt
00:00:10]} Ke6 {[%clk 00:40:13]} {[%emt 00:00:11]} 57. Re7+ {[%clk 00:52:04]}
{[%emt 00:00:07]} Kd6 {[%clk 00:40:28]} {[%emt 00:00:15]} 58. Ra7 {[%clk
00:51:18]} {[%emt 00:01:16]} Ke6 {[%clk 00:40:35]} {[%emt 00:00:23]} 59. Kg4
{[%clk 00:51:10]} {[%emt 00:00:38]} Rh1 {[%clk 00:40:45]} {[%emt 00:00:19]} 60.
Ra6+ {[%clk 00:51:14]} {[%emt 00:00:28]} Kf7 {[%clk 00:40:30]} {[%emt
00:00:44]} 61. Kg3 {[%clk 00:49:42]} {[%emt 00:02:01]} Rh5 {[%clk 00:39:34]}
{[%emt 00:01:27]} 62. Ra7+ {[%clk 00:49:49]} {[%emt 00:00:24]} Ke6 {[%clk
00:39:53]} {[%emt 00:00:10]} 63. Re7+ {[%clk 00:50:13]} {[%emt 00:00:07]} Kd5
{[%clk 00:40:06]} {[%emt 00:00:17]} 64. Re4 {[%clk 00:50:30]} {[%emt 00:00:13]}
Rh1 {[%clk 00:40:15]} {[%emt 00:00:19]} 65. Rh4 {[%clk 00:50:46]} {[%emt
00:00:15]} Rb1 {[%clk 00:37:41]} {[%emt 00:03:04]} 66. Rxh7 {[%clk 00:50:58]}
{[%emt 00:00:16]} Ke6 {[%clk 00:38:06]} {[%emt 00:00:07]} 67. Re7+ {[%clk
00:51:10]} {[%emt 00:00:18]} Kd5 {[%clk 00:37:50]} {[%emt 00:00:46]} 68. Kf4
{[%clk 00:50:31]} {[%emt 00:01:08]} Rb4+ {[%clk 00:38:04]} {[%emt 00:00:18]} 69.
Re4 {[%clk 00:50:47]} {[%emt 00:00:13]} Rb3 {[%clk 00:38:15]} {[%emt 00:00:20]}
70. Ra4 {[%clk 00:50:34]} {[%emt 00:00:43]} Rb1 {[%clk 00:35:40]} {[%emt
00:03:04]} 71. Ra6 {[%clk 00:50:30]} {[%emt 00:00:34]} Rb4+ {[%clk 00:35:47]}
{[%emt 00:00:23]} 72. Kg3 {[%clk 00:50:46]} {[%emt 00:00:13]} Rb3 {[%clk
00:34:14]} {[%emt 00:02:04]} 73. Kg4 {[%clk 00:51:06]} {[%emt 00:00:10]} Rb4+
{[%clk 00:34:27]} {[%emt 00:00:17]} 74. f4 {[%clk 00:51:24]} {[%emt 00:00:10]}
Rb1 {[%clk 00:34:35]} {[%emt 00:00:24]} 75. Bg7 {[%clk 00:51:02]} {[%emt
00:00:51]} Rg1+ {[%clk 00:34:37]} {[%emt 00:00:29]} 76. Kf3 {[%emt 00:00:17]}
Rf1+ {[%emt 00:00:17]} 77. Ke3 {[%clk 00:50:51]} {[%emt 00:00:05]} Re1+ {[%clk
00:34:56]} {[%emt 00:00:13]} 78. Kf2 {[%clk 00:50:26]} {[%emt 00:00:08]} Re7
{[%clk 00:32:16]} {[%emt 00:03:58]} 79. Rxg6 {[%clk 00:50:24]} {[%emt
00:00:32]} Ke4 {[%clk 00:32:39]} {[%emt 00:00:08]} 80. Be5 {[%clk 00:50:44]}
{[%emt 00:00:10]} Kf5 {[%clk 00:32:10]} {[%emt 00:00:59]} 81. Rf6+ {[%clk
00:50:41]} {[%emt 00:00:33]} Kg4 {[%clk 00:32:22]} {[%emt 00:00:19]} 82. Rf8
{[%clk 00:50:42]} {[%emt 00:00:28]} Kh5 {[%clk 00:32:26]} {[%emt 00:00:26]} 83.
Kg3 {[%clk 00:50:51]} {[%emt 00:00:22]} Kg6 {[%clk 00:32:10]} {[%emt 00:00:46]}
84. Kg4 {[%clk 00:51:07]} {[%emt 00:00:13]} Rb7 {[%clk 00:31:05]} {[%emt
00:01:34]} 85. Rf6+ {[%clk 00:51:06]} {[%emt 00:00:33]} Kh7 {[%clk 00:31:20]}
{[%emt 00:00:16]} 86. Kf5 {[%clk 00:51:11]} {[%emt 00:00:25]} Kg8 {[%clk
00:30:37]} {[%emt 00:01:12]} 87. Ra6 {[%clk 00:51:14]} {[%emt 00:00:28]} Rf7+
{[%clk 00:28:03]} {[%emt 00:03:04]} 88. Kg6 {[%clk 00:50:26]} {[%emt 00:01:17]}
Rg7+ {[%clk 00:28:22]} {[%emt 00:00:11]} 89. Kf5 {[%clk 00:50:31]} {[%emt
00:00:25]} Rf7+ {[%clk 00:28:31]} {[%emt 00:00:22]} 90. Bf6 {[%clk 00:50:52]}
{[%emt 00:00:08]} Rf8 {[%clk 00:28:33]} {[%emt 00:00:28]} 91. Ra1 {[%clk
00:51:04]} {[%emt 00:00:18]} Rb8 {[%clk 00:24:27]} {[%emt 00:04:37]} 92. Kg6
{[%clk 00:50:22]} {[%emt 00:01:12]} Rf8 {[%clk 00:19:59]} {[%emt 00:04:58]} 93.
Rh1 {[%clk 00:50:00]} {[%emt 00:00:52]} 1-0